bitfinex-derivatives/quotes_ETHF0:USTF0_20250528
["timestamp","ask_amount","ask_price","bid_price","bid_amount"]
[1748405703966,2.57128268,2642.9,2642.8,0.7564]
[1748405704160,1.28848491,2642.9,2642.8,0.7564]
[1748405705369,1.28848491,2642.9,2642.8,2.0903]
[1748405707262,1.28848491,2642.9,2642.8,5.2981]
[1748405714276,1.28848491,2642.9,2642.8,2.0903]
[1748405717665,1.28848491,2642.9,2642.8,2.7443]
[1748405720177,1.28848491,2642.9,2642.8,5.9521]
[1748405723082,1.28848491,2642.9,2642.8,6.4133]
[1748405723282,1.28848491,2642.9,2642.8,9.6211]
[1748405725180,1.3079,2643.3,2643.2,0.75628]
[1748405725479,1.3079,2643.3,2643.2,4.42528]
[1748405725882,1.3079,2643.3,2643.2,5.10568]
[1748405726584,0.6245,2643.4,2643.3,0.75625]
[1748405726981,0.6245,2643.4,2643.3,2.04545]
[1748405727287,1.9324,2643.4,2643.3,2.04545]
[1748405728082,1.3079,2643.4,2643.3,2.04545]
[1748405730690,0.00567795,2643.5,2643.4,0.75623]
[1748405730979,0.00567795,2643.5,2643.4,18.66473]
[1748405731779,0.6184,2643.9,2643.8,0.75611]
[1748405732084,3.2078,2644.0,2643.9,0.75608]
[1748405732485,3.2078,2644.0,2643.9,2.08708]
[1748405733082,5.1614,2644.0,2643.9,2.08708]
[1748405737294,5.1614,2644.0,2643.9,0.75608]
[1748405737791,1.9536,2644.0,2643.9,0.75608]
[1748405738996,1.9536,2644.0,2643.7,0.75614]
[1748405739187,1.9536,2644.0,2643.6,0.75615]
[1748405739188,0.75611,2643.8,2643.6,0.75615]
[1748405739392,2.66415,2643.7,2643.5,0.75618]
[1748405739592,1.8924,2643.6,2643.5,0.75618]
[1748405740704,5.85638,2643.6,2643.4,0.75621]
[1748405740904,1.3112,2643.5,2643.4,0.75621]
[1748405747698,3.8374,2643.6,2643.5,0.7562]
[1748405747894,1.2729,2644.0,2643.9,0.75608]
[1748405748194,1.2729,2644.0,2643.8,0.75609]
[1748405748504,5.23677,2644.0,2643.9,0.75608]
[1748405748704,4.4807,2644.0,2643.9,0.75608]
[1748405751797,5.23675,2644.0,2643.9,0.75608]
[1748405752200,4.4807,2644.0,2643.9,0.75608]
[1748405757304,3.2078,2644.0,2643.9,2.10968]
[1748405757709,0.00567795,2644.2,2643.9,1.3536]
[1748405757905,0.00567795,2644.2,2644.0,1.3536]
[1748405758405,1.24737795,2644.2,2644.0,1.3536]
[1748405758703,0.00567795,2644.2,2644.1,0.75603]
[1748405760107,0.00567795,2644.2,2644.1,4.42003]
[1748405762899,0.00567795,2644.2,2644.1,0.75603]
[1748405763210,1.96927795,2644.2,2644.1,0.75603]
[1748405765311,1.96927795,2644.2,2644.1,2.01163]
[1748405768514,0.00567795,2644.2,2644.1,2.01163]
[1748405773912,1.28977795,2644.2,2644.1,2.01163]
[1748405775321,0.00567795,2644.2,2644.1,2.01163]
[1748405780823,1.32127795,2644.2,2644.1,2.01163]
[1748405784423,0.00567795,2644.2,2644.1,2.01163]
[1748405784920,1.35717795,2644.2,2644.1,2.01163]
[1748405788020,0.00567795,2644.2,2644.1,2.01163]
[1748405793529,0.00567795,2644.2,2644.1,19.25963]
[1748405793723,1.34427795,2644.2,2644.1,19.25963]
[1748405793928,1.34427795,2644.2,2644.1,19.90193]
[1748405794135,0.00567795,2644.2,2644.1,19.90193]
[1748405795027,0.00567795,2644.2,2644.1,19.25963]
[1748405795227,1.28319922,2644.2,2644.1,19.25963]
[1748405795428,2.58749922,2644.2,2644.1,19.25963]
[1748405795829,1.28319922,2644.2,2644.1,19.90193]
[1748405803045,2.63749922,2644.2,2644.1,19.90193]
[1748405805242,1.35997795,2644.2,2644.1,19.90193]
[1748405805447,1.35997795,2644.2,2644.1,2.65393]
[1748405807247,1.35997795,2644.2,2644.1,3.27933]
[1748405809651,2.6375506,2644.2,2644.1,3.27933]
[1748405809945,1.35997795,2644.2,2644.1,3.27933]
[1748405810555,2.63754844,2644.2,2644.1,3.27933]
[1748405811453,1.35997795,2644.2,2644.1,3.27933]
[1748405812956,2.11597795,2644.2,2644.1,3.27933]
[1748405813155,3.39352195,2644.2,2644.1,3.27933]
[1748405813456,2.11597795,2644.2,2644.1,2.63703]
[1748405813754,1.35997795,2644.2,2644.1,2.63703]
[1748405816661,0.00567795,2644.2,2644.1,6.46533]
[1748405818357,0.00567795,2644.2,2644.1,3.25753]
[1748405820359,0.00567795,2644.2,2644.1,6.46533]
[1748405822064,1.254,2644.7,2644.6,0.75588]
[1748405822762,1.254,2644.7,2644.6,2.02328]
[1748405824064,1.254,2644.7,2644.5,0.75589]
[1748405824367,0.7559,2644.6,2644.5,0.75591]
[1748405825660,2.00987,2644.7,2644.5,0.75591]
[1748405826061,2.10628,2644.6,2644.5,0.75591]
[1748405826265,1.3504,2644.6,2644.5,0.75591]
[1748405827968,1.3504,2644.6,2644.4,1.39729795]
[1748405828160,1.3114,2644.5,2644.4,0.76161795]
[1748405828760,2.6027,2644.5,2644.4,0.76161795]
[1748405829165,2.6027,2644.5,2644.4,2.02061795]
[1748405830955,2.6027,2644.5,2644.4,0.76161795]
[1748405834265,3.35861,2644.5,2644.4,0.76161795]
[1748405834459,2.6027,2644.5,2644.4,0.76161795]
[1748405836066,3.35861,2644.5,2644.4,0.76161795]
[1748405836369,2.6027,2644.5,2644.4,0.76161795]
[1748405839367,3.2078,2644.8,2644.7,0.75586]
[1748405840268,2.04577795,2644.9,2644.8,0.75583]
[1748405841173,2.04577795,2644.9,2644.8,1.41593]
[1748405842772,2.04577795,2644.9,2644.8,0.6601]
[1748405843274,0.75588,2644.6,2644.5,0.7559]
[1748405843866,1.37868,2644.7,2644.6,0.75588]
[1748405844062,0.75588,2644.6,2644.5,2.0668]
[1748405844571,0.75591,2644.5,2644.4,3.86667795]
[1748405844771,0.75591,2644.5,2644.4,7.51967795]
[1748405845074,0.75591,2644.5,2644.4,4.31187795]
[1748405845372,0.75591,2644.5,2644.4,5.62277795]
[1748405845569,2.12501,2644.5,2644.4,5.62277795]
[1748405845963,2.12501,2644.5,2644.4,1.96977795]
[1748405846171,2.12501,2644.5,2644.4,0.65887795]
[1748405846376,2.12501,2644.5,2644.4,0.00567795]
[1748405849172,2.12501,2644.5,2643.9,1.9316]
[1748405849173,0.75606,2644.0,2643.9,1.9316]
[1748405849373,0.75611,2643.9,2643.8,3.653]
[1748405849676,2.04981,2643.9,2643.8,3.653]
[1748405851373,0.75614,2643.7,2643.6,0.00567795]
[1748405851571,3.16519129,2643.7,2642.9,0.6335]
[1748405851772,3.2078,2643.5,2642.8,5.6084]
[1748405851973,0.7563,2643.2,2642.8,5.6084]
[1748405852174,0.6625,2643.1,2643.0,0.75634]
[1748405852577,0.6625,2643.1,2642.8,5.61407795]
[1748405852877,0.6625,2643.1,2643.0,0.75634]
[1748405853482,0.6625,2643.1,2642.9,0.75635]
[1748405853682,0.6625,2643.1,2642.9,2.11865]
[1748405854683,0.6625,2643.1,2643.0,0.75634]
[1748405858077,1.41883,2643.1,2642.9,2.11867]
[1748405858784,0.75634,2643.0,2642.9,1.3623]
[1748405859185,1.41883,2643.1,2642.9,2.11865]
[1748405859386,1.41881,2643.1,2643.0,0.75634]
[1748405859586,0.6625,2643.1,2643.0,0.75634]
[1748405862986,0.76194795,2643.3,2642.9,1.2677]
[1748405863290,0.00567795,2643.3,2643.2,0.75628]
[1748405863889,0.00567795,2643.3,2643.2,1.43978]
[1748405865284,0.00567795,2643.3,2643.2,2.07438]
[1748405868287,0.00567795,2643.3,2643.1,1.3584]
[1748405868491,0.75633,2643.1,2643.0,0.75634]
[1748405870189,0.75633,2643.1,2643.0,2.02264]
[1748405870895,0.75633,2643.1,2643.0,1.2663]
[1748405872088,2.06103,2643.1,2643.0,1.2663]
[1748405873091,2.06103,2643.1,2643.0,2.02264]
[1748405873493,2.06103,2643.1,2643.0,1.2663]
[1748405880492,2.06103,2643.1,2643.0,2.02264]
[1748405883408,3.2078,2643.2,2643.1,0.75631]
[1748405883602,3.2078,2643.2,2643.1,2.01271]
[1748405885405,3.96408,2643.2,2643.1,2.01271]
[1748405885604,3.96408,2643.2,2643.1,1.2564]
[1748405886096,0.75634,2643.0,2642.9,1.3079]
[1748405886302,0.75637,2642.9,2642.8,1.30877795]
[1748405886603,2.03307,2642.9,2642.8,1.30877795]
[1748405887508,2.03307,2642.9,2642.8,2.06517795]
[1748405888296,1.2767,2642.9,2642.8,2.06517795]
[1748405888504,2.03307,2642.9,2642.8,2.06517795]
[1748405889002,2.03307,2642.9,2642.8,1.30877795]
[1748405890804,2.03307,2642.9,2642.8,0.00567795]
[1748405893614,2.03307,2642.9,2642.8,0.76207795]
[1748405894709,1.2767,2642.9,2642.8,0.76207795]
[1748405895414,1.2767,2642.9,2642.8,2.08817795]
[1748405895614,0.75636,2643.0,2642.9,0.75637]
[1748405895815,0.75636,2643.0,2642.9,2.67487]
[1748405896923,3.2078,2643.2,2643.1,0.75631]
[1748405897416,0.00567795,2643.3,2643.2,0.75628]
[1748405898023,0.00567795,2643.3,2643.2,1.2939]
[1748405898208,0.00567795,2643.3,2643.2,2.05018]
[1748405900916,0.00567795,2643.3,2643.2,5.69918]
[1748405901118,0.00567795,2643.3,2643.2,8.90698]
[1748405905414,0.00567795,2643.3,2643.2,22.93218]
[1748405905614,0.00567795,2643.3,2643.2,2.05018]
[1748405905811,0.00567795,2643.3,2643.2,22.93218]
[1748405906024,0.00567795,2643.3,2643.2,5.69818]
[1748405914324,0.76193795,2643.3,2643.2,4.9419]
[1748405914519,0.00567795,2643.3,2643.2,5.69818]
[1748405933651,3.645,2644.4,2643.7,0.75614]
[1748405933943,4.48308327,2643.8,2643.7,0.75614]
[1748405934151,3.35006,2644.0,2643.9,0.75608]
[1748405934341,2.10326,2644.0,2643.9,0.75608]
[1748405934545,3.37852853,2644.0,2643.9,0.75608]
[1748405936354,3.37765452,2644.0,2643.9,0.75608]
[1748405937252,2.10326,2644.0,2643.9,0.75608]
[1748405939151,1.3472,2644.0,2643.5,4.2627]
[1748405939355,1.3472,2644.0,2643.6,17.225]
[1748405939658,0.75612,2643.8,2643.7,0.75612]
[1748405939953,0.7561,2643.9,2643.8,0.7561]
[1748405940353,2.10327,2644.0,2643.9,0.75608]
[1748405940555,3.37698093,2644.0,2643.9,0.75608]
[1748405940758,3.37696571,2644.0,2643.9,0.75608]
[1748405941059,2.62089571,2644.0,2643.9,0.75608]
[1748405941256,0.00567795,2644.2,2644.1,0.75603]
[1748405941457,1.27898287,2644.2,2644.1,0.75603]
[1748405941657,0.00567795,2644.2,2644.1,0.75603]
[1748405943756,1.8894,2645.1,2644.2,1.88995]
[1748405943757,3.2078,2645.1,2644.2,1.88995]
[1748405943963,2.61167599,2645.0,2644.8,0.7558]
[1748405944172,3.36745599,2645.0,2644.8,0.7558]
[1748405944462,0.7558,2644.9,2644.7,0.75584]
[1748405947664,0.75588,2644.6,2644.5,0.00567795]
[1748405948256,1.88989,2644.4,2643.6,2.5521]
[1748405948461,0.75605,2644.0,2643.9,3.644]
[1748405948864,0.75608,2643.9,2643.7,20.864]
[1748405949167,0.75607,2644.0,2643.8,0.7561]
[1748405950160,0.6607,2643.9,2643.8,0.7561]
[1748405950362,0.6607,2643.9,2643.7,0.75612]
[1748405950565,0.75611,2643.8,2643.6,4.40582795]
[1748405950771,0.75611,2643.8,2643.7,0.75614]
[1748405952973,0.6618,2643.7,2643.6,0.76184795]
[1748405953166,1.9278,2643.7,2643.6,0.76184795]
[1748405955775,2.68394,2643.7,2643.6,0.76184795]
[1748405955980,1.9278,2643.7,2643.6,0.76184795]
[1748405956477,2.68394,2643.7,2643.6,0.00567795]
[1748405958480,1.8905,2643.5,2642.9,6.8498]
[1748405958668,0.75633,2643.1,2643.0,0.75634]
[1748405958868,0.7563,2643.2,2643.0,0.75634]
[1748405959069,0.75632,2643.1,2642.9,8.1805]
[1748405959564,1.2678,2643.1,2643.0,0.75633]
[1748405960477,1.2678,2643.1,2643.0,2.08503]
[1748405960971,0.75634,2643.0,2642.9,3.2078]
[1748405961167,0.75637,2642.9,2642.8,2.0033]
[1748405961368,0.75637,2642.9,2642.7,3.64767795]
[1748405961369,2.05507,2642.9,2642.7,3.64767795]
[1748405961676,0.7564,2642.8,2642.7,0.00567795]
[1748405961874,2.704,2642.8,2642.7,0.00567795]
[1748405962875,1.9476,2642.8,2642.7,0.76210795]
[1748405966381,2.704,2642.8,2642.7,0.00567795]
[1748405967478,2.704,2642.8,2642.7,0.76210795]
[1748405972580,1.9476,2642.8,2642.7,0.76210795]
[1748405972885,1.2987,2642.8,2642.7,0.76210795]
[1748405974479,3.2078,2643.0,2642.9,0.75637]
[1748405974682,0.6735,2643.2,2642.7,0.00567795]
[1748405974683,0.6735,2643.2,2643.1,0.75631]
[1748405975788,2.06885795,2643.3,2643.2,0.75628]
[1748405978489,0.75629,2643.2,2643.1,0.7563]
[1748405981687,2.06885795,2643.3,2643.2,0.75628]
[1748405982395,0.00567795,2643.3,2643.2,0.75628]
[1748405982582,0.00567795,2643.3,2643.2,17.98128]
[1748405982783,3.2078,2643.4,2643.2,21.62427]
[1748405983089,0.75627,2643.3,2643.2,21.62427]
[1748405985484,5.8459,2643.4,2643.0,18.4908]
[1748405985685,0.7563,2643.2,2643.1,0.7563]
[1748405986989,2.10677,2643.3,2643.2,0.75628]
[1748405987180,2.10677,2643.3,2643.1,2.08679]
[1748405987384,1.3145,2643.2,2643.1,2.08679]
[1748405987596,2.07078,2643.2,2643.1,2.08679]
[1748405988494,1.3145,2643.2,2643.1,2.08679]
[1748405989397,2.07078,2643.2,2643.1,2.08679]
[1748405989795,2.07078,2643.2,2642.9,3.642]
[1748405990099,0.75634,2643.0,2642.9,1.336]
[1748405990493,0.7564,2642.8,2642.7,0.00567795]
[1748405991094,2.0187,2642.8,2642.7,0.00567795]
[1748405991490,1.2623,2642.8,2642.7,0.76210795]
[1748405992998,2.0187,2642.8,2642.7,0.76210795]
[1748405998903,1.2623,2642.8,2642.7,0.76210795]
[1748405999304,1.43078,2642.9,2642.8,0.7564]
[1748405999499,1.43078,2642.9,2642.8,2.105]
[1748405999704,0.6436,2643.2,2642.8,1.3486]
[1748405999904,0.6436,2643.2,2643.1,0.75631]
[1748406000105,1.91478151,2643.2,2643.1,0.75631]
[1748406000302,0.6436,2643.2,2643.1,0.75631]
[1748406000604,1.39988,2643.2,2643.1,0.75631]
[1748406001609,2.67143597,2643.2,2643.1,0.75631]
[1748406002106,0.75631,2643.1,2643.0,2.10492]
[1748406002493,0.75631,2643.1,2642.9,1.3133]
[1748406002494,3.2078,2643.1,2642.7,0.00567795]
[1748406002794,3.9642,2642.8,2642.7,0.00567795]
[1748406002994,5.23598247,2642.8,2642.7,0.00567795]
[1748406005107,3.2078,2643.1,2642.7,0.00567795]
[1748406005310,1.27179523,2643.0,2642.9,0.75637]
[1748406005804,3.96413,2643.1,2642.8,1.2468]
[1748406006108,3.2078,2643.1,2643.0,0.75634]
[1748406007610,1.27155597,2643.2,2643.1,0.75631]
[1748406009004,1.27155597,2643.2,2643.1,2.75791]
[1748406012512,2.54275597,2643.2,2643.1,2.75791]
[1748406013710,1.27155597,2643.2,2643.1,2.75791]
[1748406021025,3.2078,2643.5,2643.4,0.75623]
[1748406021320,3.2078,2643.9,2643.8,0.75611]
[1748406021726,2.6033,2644.0,2643.9,0.75608]
[1748406022423,2.6033,2644.0,2643.7,1.2503]
[1748406022424,0.00567795,2644.2,2644.1,0.75603]
[1748406023223,0.00567795,2644.2,2644.1,17.97603]
[1748406023726,0.00567795,2644.2,2644.1,19.30353]
[1748406025026,0.00567795,2644.2,2644.1,24.30353]
[1748406025027,7.95e-06,2644.2,2644.1,24.30353]
[1748406026026,7.95e-06,2644.2,2644.1,27.94953]
[1748406026624,7.95e-06,2644.2,2644.1,27.94553]
[1748406027422,7.95e-06,2644.2,2644.1,5.72353]
[1748406027622,1.31240795,2644.2,2644.1,5.72353]
[1748406027828,1.31240795,2644.2,2644.1,2.08353]
[1748406028128,1.31240795,2644.2,2644.1,0.75603]
[1748406029033,1.31240795,2644.2,2644.0,3.96384]
[1748406029220,1.31240795,2644.2,2643.9,3.64]
[1748406029829,2.06842795,2644.2,2643.9,4.39606]
[1748406030032,2.06842795,2644.2,2644.0,0.75605]
[1748406030233,1.2698,2644.1,2644.0,0.75605]
[1748406037233,1.2698,2644.1,2644.0,2.11815]
[1748406038622,7.95e-06,2644.2,2644.1,0.75603]
[1748406038825,7.95e-06,2644.2,2644.1,5.21073]
[1748406039332,7.95e-06,2644.2,2644.1,26.08173]
[1748406039833,7.95e-06,2644.2,2644.1,26.08373]
[1748406041129,7.95e-06,2644.2,2644.1,5.21073]
[1748406041335,7.95e-06,2644.2,2644.1,26.07873]
[1748406042042,7.95e-06,2644.2,2644.1,7.60283]
[1748406042636,1.33750795,2644.2,2644.1,7.60283]
[1748406044545,1.33750795,2644.2,2644.1,4.39503]
[1748406045745,1.33750795,2644.2,2644.1,0.75603]
[1748406045943,1.33750795,2644.2,2644.1,4.40203]
[1748406049341,1.33750795,2644.2,2644.1,0.75603]
[1748406049645,1.33750795,2644.2,2644.1,21.61903]
[1748406049847,1.33750795,2644.2,2644.1,0.75603]
[1748406050040,1.33750795,2644.2,2644.1,21.61903]
[1748406050643,1.33750795,2644.2,2644.1,0.75603]
[1748406050843,0.75603,2644.1,2644.0,4.40204]
[1748406051042,0.75603,2644.1,2644.0,21.61904]
[1748406051247,0.75603,2644.1,2644.0,4.40204]
[1748406051545,2.09351795,2644.2,2644.1,0.75603]
[1748406051939,1.33750795,2644.2,2644.1,0.75603]
[1748406053746,1.33750795,2644.2,2644.1,2.09853]
[1748406059441,7.95e-06,2644.2,2644.1,2.09853]
[1748406059751,7.95e-06,2644.2,2644.1,2.75453]
[1748406060146,7.95e-06,2644.2,2644.1,10.96233]
[1748406064458,7.95e-06,2644.2,2644.1,31.82233]
[1748406065247,3.2078,2645.5,2645.0,0.75577]
[1748406065448,3.15192197,2645.4,2645.3,0.75568]
[1748406065643,1.8789,2645.4,2645.3,0.75568]
[1748406068252,0.6485,2645.5,2645.4,0.75565]
[1748406068851,0.6485,2645.5,2645.4,2.10415]
[1748406070254,1.2865,2645.5,2645.4,2.10415]
[1748406070454,2.6342,2645.5,2645.4,2.10415]
[1748406071360,0.00567795,2645.6,2645.5,0.75563]
[1748406071556,0.00567795,2645.6,2645.5,1.37623]
[1748406074759,0.00567795,2645.6,2645.5,5.01423]
[1748406074958,0.00567795,2645.6,2645.5,5.66453]
[1748406077653,0.00567795,2645.6,2645.5,22.87253]
[1748406085773,1.26247795,2645.6,2645.5,22.87253]
[1748406085973,6.26247795,2645.6,2645.1,0.00567795]
[1748406086175,0.75571,2645.2,2645.1,0.00567795]
[1748406087879,0.75571,2645.2,2645.1,0.76141795]
[1748406088077,2.0125,2645.3,2645.2,0.75571]
[1748406090184,2.0125,2645.3,2645.2,0.75062936]
[1748406093288,0.75571,2645.2,2645.1,0.76139795]
[1748406093481,2.09111,2645.2,2645.1,0.76139795]
[1748406093784,1.3354,2645.2,2645.1,0.76139795]
[1748406094189,2.09111,2645.2,2645.1,0.76139795]
[1748406094387,2.09111,2645.2,2645.1,0.00567795]
[1748406094983,3.36135473,2645.2,2645.1,0.00567795]
[1748406095285,0.75586,2644.7,2644.6,21.60687]
[1748406095685,0.75586,2644.7,2644.6,4.39387]
[1748406097188,0.6709,2644.7,2644.6,4.39387]
[1748406097583,1.9253,2644.7,2644.6,4.39387]
[1748406097782,2.68116,2644.7,2644.6,4.39387]
[1748406098384,1.9253,2644.7,2644.6,4.39387]
[1748406099183,0.75588,2644.6,2644.5,3.2078]
[1748406099388,0.75591,2644.5,2644.4,0.00567795]
[1748406099682,3.96371,2644.5,2644.4,0.00567795]
[1748406100088,5.23197375,2644.5,2644.4,0.00567795]
[1748406100686,3.96371,2644.5,2644.4,0.00567795]
[1748406101191,8.96371,2644.5,2644.4,0.00567795]
[1748406101388,3.96371,2644.5,2644.4,0.00567795]
[1748406102790,44.76371,2644.5,2644.4,0.00567795]
[1748406105291,44.0078,2644.5,2644.4,0.00567795]
[1748406105488,1.2544,2644.6,2644.5,0.75591]
[1748406105790,0.75591,2644.5,2644.4,0.00567795]
[1748406105992,3.96371,2644.5,2644.4,0.00567795]
[1748406106593,8.96371,2644.5,2644.4,0.00567795]
[1748406106790,1.88986,2644.4,2643.7,1.9562]
[1748406106988,3.2078,2644.2,2643.7,2.71233]
[1748406107190,3.2078,2644.2,2643.5,0.75618]
[1748406107394,3.2078,2643.9,2643.4,4.3962]
[1748406107588,0.75614,2643.7,2643.5,0.7562]
[1748406107785,1.2345,2643.6,2643.5,2.0488]
[1748406112305,0.75614,2643.7,2643.5,2.04879]
[1748406112496,0.75614,2643.7,2643.6,1.3246]
[1748406112802,0.75614,2643.7,2643.6,1.9711]
[1748406113098,2.10624,2643.7,2643.6,1.9711]
[1748406114801,1.3501,2643.7,2643.6,2.72727]
[1748406114994,2.10624,2643.7,2643.6,1.9711]
[1748406116900,1.3501,2643.7,2643.6,1.9711]
[1748406117101,2.10624,2643.7,2643.6,1.9711]
[1748406120103,1.2866,2643.8,2643.6,2.72727]
[1748406120403,2.04271,2643.8,2643.7,1.3699]
[1748406120802,3.39461,2643.8,2643.7,1.3699]
[1748406123208,0.75614,2643.7,2643.6,0.6465]
[1748406123410,1.3008,2643.7,2643.3,0.00567795]
[1748406123708,0.75623,2643.4,2643.3,0.00567795]
[1748406124207,2.68693,2643.4,2643.3,0.00567795]
[1748406128712,3.9530245,2643.4,2643.3,0.00567795]
[1748406130510,3.642,2643.7,2643.3,0.76193795]
[1748406130712,0.75622,2643.5,2643.3,2.03423795]
[1748406130911,0.75622,2643.5,2643.4,1.9333]
[1748406131312,2.0228125,2643.5,2643.4,1.9333]
[1748406133211,5.2306125,2643.5,2643.4,1.9333]
[1748406134014,2.0228125,2643.5,2643.4,1.9333]
[1748406135314,0.75619,2643.6,2643.4,2.68953]
[1748406135616,0.75619,2643.6,2643.5,1.2515]
[1748406136016,2.02456432,2643.6,2643.5,1.2515]
[1748406137521,0.7562,2643.5,2643.4,0.661]
[1748406137722,2.6469,2643.5,2643.4,0.661]
[1748406138117,2.6469,2643.5,2643.4,2.0171]
[1748406138923,0.75623,2643.4,2643.3,0.00567795]
[1748406139119,3.28334066,2643.4,2643.3,0.00567795]
[1748406139917,3.28288743,2643.4,2643.3,0.00567795]
[1748406144227,2.01393,2643.4,2643.3,0.00567795]
[1748406144427,3.28318123,2643.4,2643.3,0.00567795]
[1748406146123,3.2825876,2643.4,2643.3,0.00567795]
[1748406146328,3.2825876,2643.4,2634.3,0.07339423]
[1748406146329,0.75643,2642.7,2642.6,3.642]
[1748406147232,0.75643,2642.7,2642.6,4.895]
[1748406148428,0.75641,2642.8,2642.6,4.895]
[1748406148628,0.75638,2642.9,2642.7,2.00942]
[1748406148827,0.75638,2642.9,2642.8,1.2382]
[1748406149228,3.96415,2643.0,2642.8,1.9946]
[1748406149427,0.75637,2642.9,2642.8,1.9946]
[1748406149627,0.75637,2642.9,2642.6,3.642]
[1748406149628,3.2078,2643.0,2642.9,0.75637]
[1748406149932,0.75629,2643.2,2643.1,0.7563]
[1748406150124,0.75627,2643.3,2643.1,0.7563]
[1748406150326,0.75627,2643.3,2643.2,0.6561]
[1748406150527,2.02490919,2643.3,2643.2,0.6561]
[1748406150823,1.2704,2643.5,2643.3,0.75624]
[1748406151026,0.75623,2643.4,2643.2,1.41237]
[1748406151331,0.75626,2643.3,2643.2,1.41237]
[1748406152031,0.75625,2643.4,2643.2,1.41237]
[1748406152225,0.75626,2643.3,2643.2,0.6561]
[1748406152530,2.02588292,2643.3,2643.2,0.6561]
[1748406152926,2.02599807,2643.3,2643.2,0.6561]
[1748406154733,2.02599807,2643.3,2643.2,1.41238]
[1748406154934,1.26973807,2643.3,2643.2,0.6561]
[1748406155138,2.02599807,2643.3,2643.2,0.6561]
[1748406156038,0.75637,2642.9,2642.8,3.642]
[1748406156231,2.0097,2643.2,2642.7,17.97942]
[1748406156433,2.59646973,2643.1,2642.7,17.97942]
[1748406156635,0.75637,2642.9,2642.7,1.37602]
[1748406157738,0.75637,2642.9,2642.8,0.7564]
[1748406158331,1.3267,2643.0,2642.7,1.376]
[1748406158529,0.7564,2642.8,2642.7,1.376]
[1748406159135,0.75639,2642.9,2642.8,0.7564]
[1748406161046,0.7564,2642.8,2642.7,0.6196]
[1748406161450,0.7564,2642.8,2642.7,1.37603]
[1748406162542,0.7564,2642.8,2642.7,1.3157]
[1748406162748,2.0575,2642.8,2642.7,1.3157]
[1748406164844,2.0575,2642.8,2642.7,2.07213]
[1748406165044,2.0575,2642.8,2642.7,1.3157]
[1748406166053,0.75646,2642.6,2642.5,0.6257]
[1748406167048,2.11366,2642.6,2642.5,1.8718]
[1748406167743,3.3834217,2642.6,2642.5,1.2461]
[1748406170656,3.38397411,2642.6,2642.5,1.2461]
[1748406176060,2.11366,2642.6,2642.5,1.2461]
[1748406179361,1.41655,2642.7,2642.5,1.2461]
[1748406179563,0.75645,2642.7,2642.5,2.00257]
[1748406180059,0.75645,2642.7,2642.6,1.2663]
[1748406184066,1.3291,2642.8,2642.4,1.30447795]
[1748406184254,0.75643,2642.7,2642.5,2.02947]
[1748406184459,0.75643,2642.7,2642.6,1.273]
[1748406185559,0.75648,2642.5,2642.4,1.30447795]
[1748406185761,0.75648,2642.5,2642.4,2.63797795]
[1748406186164,0.75648,2642.5,2642.4,3.39448795]
[1748406186566,0.75645,2642.7,2642.4,2.63797795]
[1748406186868,0.75641,2642.8,2642.6,0.75644]
[1748406187069,0.75641,2642.8,2642.7,1.3335]
[1748406187270,2.02678167,2642.8,2642.7,1.3335]
[1748406187866,0.75641,2642.8,2642.7,1.3335]
[1748406190173,0.75641,2642.8,2642.7,2.08993]
[1748406190574,2.65959,2642.9,2642.7,2.08993]
[1748406190775,2.65959,2642.9,2642.8,1.8795]
[1748406190973,3.93010062,2642.9,2642.8,1.8795]
[1748406191367,2.02690062,2642.9,2642.8,1.8795]
[1748406191574,1.27051062,2642.9,2642.8,3.3186]
[1748406191963,1.43145,2643.0,2642.8,3.3186]
[1748406192163,1.43145,2643.0,2642.9,1.3122]
[1748406192370,2.70215693,2643.0,2642.9,1.3122]
[1748406196672,2.7021747,2643.0,2642.9,1.3122]
[1748406199682,2.7021747,2643.0,2642.9,2.06857]
[1748406199989,2.7021747,2643.0,2642.9,1.3122]
[1748406200779,1.2707247,2643.0,2642.9,2.06857]
[1748406201088,3.2078,2643.3,2643.1,0.75631]
[1748406201089,0.75628,2643.3,2643.1,0.75631]
[1748406201272,0.75628,2643.3,2643.2,1.2871]
[1748406201479,0.75628,2643.3,2643.2,1.9053]
[1748406203677,0.75637,2642.9,2642.8,3.8905]
[1748406203879,1.9898,2643.2,2642.8,8.1543]
[1748406204177,2.56376,2643.2,2642.5,3.2078]
[1748406204387,0.75643,2642.7,2642.6,0.6228]
[1748406204579,0.75642,2642.8,2642.6,1.37926]
[1748406204778,0.75643,2642.7,2642.6,0.6228]
[1748406204981,0.75643,2642.7,2642.6,1.8704]
[1748406205186,0.75648,2642.5,2642.4,3.64667795]
[1748406205381,1.3168,2642.6,2642.4,3.64667795]
[1748406205584,2.07328,2642.6,2642.4,4.40318795]
[1748406205883,0.75648,2642.5,2642.4,0.00567795]
[1748406206085,1.3168,2642.5,2642.4,0.00567795]
[1748406206282,1.3168,2642.5,2642.4,0.76218795]
[1748406206685,1.3168,2642.5,2642.4,2.08318795]
[1748406207888,2.07328,2642.5,2642.4,2.08318795]
[1748406208189,1.3168,2642.5,2642.4,2.08318795]
[1748406208388,1.3168,2642.5,2642.4,1.32667795]
[1748406208583,2.07328,2642.5,2642.4,2.08318795]
[1748406208784,1.3168,2642.5,2642.4,2.08318795]
[1748406209787,2.07328,2642.5,2642.4,2.08318795]
[1748406209989,2.07328,2642.5,2642.4,1.32667795]
[1748406211985,2.07328,2642.5,2642.4,2.08318795]
[1748406212589,1.3168,2642.5,2642.4,2.08318795]
[1748406213889,2.07328,2642.5,2642.4,0.00567795]
[1748406214582,1.3168,2642.5,2642.4,0.00567795]
[1748406214786,1.3168,2642.5,2642.4,2.11668795]
[1748406215285,2.07328,2642.5,2642.4,2.11668795]
[1748406215986,2.07328,2642.5,2642.4,1.36017795]